Cogmind - Beta 16.1 @@@ ROGUE MODE // 2026.03.20 @ 00:44:42 Player: J1ang-5h1 Result: Destroyed by L-31 Rogue with Katana Performance ------------- Evolutions (1) 500 Regions Visited (4) 800 Robots Destroyed (80) 400 Value Destroyed (1934) 1934 Prototype IDs (10) 200 Alien Tech Used (0) 0 Bonus (-59) -59 TOTAL SCORE: 3775 Bonus ------- High Alert Combat Kills 41 Follower Combat Kills 35 Friendly Fire -135 Cogmind --------- Core Integrity 0/400 Matter 260/300 Energy 254/280 System Corruption 0% Temperature Cool (0) Movement Core (1600) Ox31 Location -9/Mines Parts ------- > --- POWER (1) -------- Heavy Ion Engine > --- PROPULSION (2) --- (None) > --- UTILITY (4) ------ Improved Heat Sink Improved Heat Sink Huge Storage Unit Improved Targeting Computer > --- WEAPON (2) ------- Beam Rifle Field Laser > --- INVENTORY (25) --- Heavy Ion Engine Heavy Ion Engine Armored Wheel Armored Wheel Huge Storage Unit High-capacity Matter Pod (200) Compact Matter Pod (150) Trap Scanner Experimental Sensor Array Hacking Suite Field Recycling Unit (0) Beam Rifle Beam Rifle Beam Rifle Autogun Autogun Improved Assault Rifle Improved Assault Rifle Grenade Launcher Rocket Launcher Rocket Launcher Mini Grenade Launcher Mini Grenade Launcher Flail Signal Generator Peak State ------------ > --- POWER ------------ Heavy Ion Engine > --- PROPULSION ------- Armored Wheel Armored Wheel > --- UTILITY ---------- Improved Heat Sink Improved Heat Sink Huge Storage Unit Improved Targeting Computer > --- WEAPON ----------- Field Laser Field Laser > --- INVENTORY -------- Heavy Ion Engine Heavy Ion Engine Armored Wheel Armored Wheel Huge Storage Unit High-capacity Matter Pod Compact Matter Pod Trap Scanner Experimental Sensor Array Hacking Suite Field Recycling Unit Beam Rifle Beam Rifle Beam Rifle Beam Rifle Autogun Autogun Improved Assault Rifle Improved Assault Rifle Grenade Launcher Rocket Launcher Rocket Launcher Mini Grenade Launcher Mini Grenade Launcher Flail [Rating: 28] Favorites ----------- Power Light Ion Engine Engine Light Ion Engine Propulsion Armored Wheel Leg Aluminum Leg Wheel Armored Wheel Utility Huge Storage Unit Device Improved Heat Sink Storage Huge Storage Unit Processor Improved Targeting Computer Protection Light Armor Plating Weapon Particle Gun Energy Gun Particle Gun Ballistic Gun Assault Rifle Launcher Grenade Launcher Build | -11 -10 -10 -9 -9 ------- Run | Yrd Mat Min Mat Min Slots Evolved 2 | . . . 2 . Power . | . . . . . Propulsion . | . . . . . Utility 2 | . . . 2 . Weapon . | . . . . . Parts Attached 38 | 7 12 2 16 1 Power 5 | 1 1 . 3 . Engine 5 | 1 1 . 3 . Core . | . . . . . Reactor . | . . . . . Propulsion 8 | 2 4 . 2 . Treads . | . . . . . Leg 4 | 2 2 . . . Wheel 4 | . 2 . 2 . Hover . | . . . . . Flight . | . . . . . Utility 13 | 2 3 2 6 . Device 8 | 1 1 2 4 . Storage 3 | 1 2 . . . Processor 1 | . . . 1 . Hackware . | . . . . . Protection 1 | . . . 1 . Artifact . | . . . . . Weapon 12 | 2 4 . 5 1 Energy Gun 7 | . 2 . 5 . Energy Cannon . | . . . . . Ballistic Gun 3 | 2 1 . . . Ballistic Cannon . | . . . . . Launcher 2 | . 1 . . 1 Special Weapon . | . . . . . Impact Weapon . | . . . . . Slashing Weapon . | . . . . . Piercing Weapon . | . . . . . Special Melee Weapon . | . . . . . Unidentified Prototypes 1 | . . 1 . . Parts Lost 10 | . 1 . 8 1 Power 3 | . 1 . 2 . Propulsion 1 | . . . . 1 Utility 3 | . . . 3 . Weapon 3 | . . . 3 . Highest Loss Streak 2 | . 1 . 2 1 To Critical Strikes . | . . . . . Average Backups 18 | 2 11 23 23 24 Power . | . . 1 1 2 Propulsion 1 | 1 1 2 2 2 Utility 5 | . 2 7 6 7 Weapon 9 | 1 6 12 12 13 Tool/Special . | . . . . . Unused Backups 32 | . 4 . 9 19 Power 4 | . . . 2 2 Propulsion 2 | . 2 . . . Utility 6 | . . . . 6 Weapon 19 | . 2 . 6 11 Tool/Special 1 | . . . 1 . Average Slot Usage (%) 95 | . 96 100 94 93 Engine 11 | . 10 14 10 11 Leg 4 | . 14 . . . Wheel 18 | . 13 28 18 16 Device 18 | . 14 14 24 22 Storage 12 | . 14 14 11 11 Processor 1 | . . . 2 11 Protection 2 | . . . 4 . Energy Gun 19 | . 12 28 22 20 Ballistic Gun 5 | . 15 . . . Peak Build Rating 28 | 7 14 23 28 27 Average Rating 16 | 5 9 15 22 25 On Entrance 12 | . 7 14 17 26 Avg Prop Armor Cover (%) . | . . . . . Naked Turns . | . . . . . Heaviest Build 99 | 12 90 90 99 96 Greatest Support 24 | 20 24 24 24 24 Greatest Overweight (x) 8 | . 3 3 8 7 Average Overweight (x) 2 | . 1 3 4 4 Largest Inventory Capacity 25 | 8 25 25 25 25 Average Capacity 20 | 7 14 25 25 25 Most Carried 25 | 5 22 24 25 25 Average Carried 18 | 2 11 23 23 24 Final Capacity 25 | 8 25 25 25 25 Final Carried 25 | 3 22 24 24 25 Class Distribution -------------------- 100% | Mutant Dominant Class ---------------- Mutant | -10/Materials Mutant | -10/Mines Mutant | -9/Materials Mutant | -9/Mines Resources | -11 -10 -10 -9 -9 ----------- Run | Yrd Mat Min Mat Min Matter Collected 1145 | 314 462 139 205 25 Remotely . | . . . . . Salvage Created 2877 | 137 620 105 1799 216 Parts 158 | 13 34 3 92 16 Haulers Intercepted 6 | . . . 6 . Recyclers Shooed 4 | 1 . . 3 . Parts Field Recycled . | . . . . . Retrieved Matter . | . . . . . Parts Self-Destructed . | . . . . . Prevented . | . . . . . Parts Restored . | . . . . . Kills | -11 -10 -10 -9 -9 ------- Run | Yrd Mat Min Mat Min Combat Hostiles Destroyed 52 | . 11 2 30 9 Guns 41 | . 11 2 25 3 AOE 9 | . . . 3 6 Classes Destroyed 13 | 3 4 . 3 3 Worker 4 | 1 1 1 1 . Tunneler 3 | 2 1 . . . Hauler 6 | . . . 6 . Recycler 7 | 1 1 . 5 . Operator 2 | . 1 . 1 . Watcher 5 | . 1 . 4 . Swarmer 11 | . . . 7 4 Grunt 29 | . 11 2 14 2 Brawler 1 | . . . . 1 Duelist 1 | . . . . 1 Protector 1 | . . . . 1 Sentry 9 | . . . 9 . Federalist 1 | . 1 . . . Best Kill Streak 6 | 2 3 2 6 4 Combat Bots Only 4 | . 3 2 4 4 Max Kills in Single Turn 3 | 1 1 1 2 3 Gunslinging . | . . . . . Exploded 3 | . . . 2 3 Melee . | . . . . . Uniques/NPCs Destroyed . | . . . . . Combat | -11 -10 -10 -9 -9 -------- Run | Yrd Mat Min Mat Min Hostile Shots Fired 215 | . 46 16 138 15 Missed 57 | . 9 4 39 5 Hits 158 | . 37 12 99 10 Melee 2 | . . . . 2 Projectile 156 | . 37 12 99 8 Critical Strikes 3 | . 1 1 . 1 Damage Taken 2098 | . 450 168 1254 226 Core 578 | . 103 58 300 117 Absorbed by Shields . | . . . . . Regen/Repaired (Parts) 199 | . . . 199 . Core Remaining (%) 67 | 100 . 35 . . Volleys Fired 237 | 16 60 7 140 14 Largest 2 | 2 2 2 2 2 Hottest 130 | 40 130 130 130 119 Shots Fired 421 | 32 119 14 233 23 Gun 415 | 32 118 14 231 20 Cannon . | . . . . . Launcher 6 | . 1 . 2 3 Special . | . . . . . Kinetic 130 | 32 98 . . . Thermal 285 | . 20 14 231 20 Explosive 6 | . 1 . 2 3 Electromagnetic . | . . . . . Robot Hit Streak 18 | 4 7 16 18 9 Robot Miss Streak 4 | 3 4 1 4 2 Penetration Max . | . . . . . Secondary Targets 3 | . . . 2 1 Max Gunslinging Chain 1 | . . . 1 1 Shots Hit Robots 276 | 14 69 12 166 15 Core Hits 112 | 5 29 5 58 15 Critical Kills . | . . . . . Critical Parts Destroyed . | . . . . . Critical Strikes 9 | . 1 1 6 1 Burn 9 | . 1 1 6 1 Melee Attacks . | . . . . . Impact . | . . . . . Slashing . | . . . . . Piercing . | . . . . . Sneak Attacks . | . . . . . Combat Hostiles . | . . . . . Follow-up Attacks . | . . . . . Damage Inflicted 4726 | 155 807 185 2902 677 Guns 4120 | 155 807 185 2752 221 Cannons . | . . . . . Explosions 606 | . . . 150 456 Melee . | . . . . . Ramming . | . . . . . Kinetic 772 | 155 617 . . . Thermal 3348 | . 190 185 2752 221 Explosive 606 | . . . 150 456 Electromagnetic . | . . . . . Impact . | . . . . . Slashing . | . . . . . Piercing . | . . . . . Highest Corruption . | . . . . . Average Corruption . | . . . . . Corruption Purged . | . . . . . Corruption Blocked . | . . . . . Overload Shots . | . . . . . Overflow Damage 7 | . . . . 7 Projectiles . | . . . . . Explosions 7 | . . . . 7 Melee . | . . . . . Knockbacks . | . . . . . Impact . | . . . . . Kinetic . | . . . . . Secondary . | . . . . . Self-Inflicted Damage 71 | . . . . 71 Shots 3 | . . . . 3 Rammed . | . . . . . Targets Rammed . | . . . . . Kicked . | . . . . . Crushed . | . . . . . Highest Temperature 399 | . 399 259 225 . Average Temperature 77 | . 95 141 64 . Received Heat Transfer 873 | . 270 114 465 24 Effects 2 | . 1 . 1 . Energy Bleed 1 | . 1 . . . Interference 1 | . . . 1 . Siege Activations . | . . . . . Martial Activations . | . . . . . Shielding Activations . | . . . . . Robots Disrupted . | . . . . . Combat Hostiles . | . . . . . Robots Corrupted . | . . . . . Combat Hostiles . | . . . . . Parts Fried . | . . . . . Impact Corruptions . | . . . . . Robots Melted 3 | . . . 3 . Combat Hostiles 2 | . . . 2 . Parts Melted 13 | . 1 1 10 1 Heat Transferred 8255 | . 518 518 6660 559 Parts Sabotaged . | . . . . . Parts Stolen . | . . . . . Parts Stripped . | . . . . . Power Chain Reactions . | . . . . . Alert | -11 -10 -10 -9 -9 ------- Run | Yrd Mat Min Mat Min Maximum Alert Level 2 | . . . 2 1 Low Security (%) 71 | 100 100 100 41 1 Level 1 22 | . . . 44 98 Level 2 5 | . . . 14 . Level 3 . | . . . . . Level 4 . | . . . . . Level 5 . | . . . . . High Security . | . . . . . Max Security . | . . . . . Peak Influence 500 | 5 71 42 500 385 Initial 192 | . . 21 . 192 Average 120 | . 25 5 239 294 Influence Increases 1880 | 20 432 55 1110 263 Destroy 0b10 Robot/C 1040 | . 220 40 600 180 Destroy 0b10 Robot/NC 140 | 20 25 5 85 5 Destroy Leader 322 | . 72 10 210 30 Allied During Kill 7 | . . . . 7 Successful Hack 88 | . 31 . 57 . Select Force Hacks 90 | . 60 . 30 . Disable Machine 45 | . . . 30 15 Destroy Structure 43 | . 9 . 8 26 Lose Combat Pursuer 105 | . 15 . 90 . Influence Decreases 1495 | 20 378 109 616 372 Entered New Map 335 | . . 33 . 302 Time Decay 1080 | 20 378 76 546 60 Lost Part 80 | . . . 70 10 Squads Dispatched 12 | . 5 . 6 1 Investigation 5 | . 3 . 2 . Extermination . | . . . . . Reinforcement 5 | . 2 . 3 . Assault 2 | . . . 1 1 Garrison . | . . . . . Intercept . | . . . . . Searches Triggered . | . . . . . Construction Impeded . | . . . . . Haulers Reinforced . | . . . . . Active Scanning Responses . | . . . . . Cargo Convoy Interrupts . | . . . . . Stealth | -11 -10 -10 -9 -9 --------- Run | Yrd Mat Min Mat Min Distress Signals 4 | . 2 . 2 . Communications Jammed . | . . . . . Distress Signals . | . . . . . Times Spotted 83 | . 20 2 49 12 Peak Tracking Total 6 | . 3 2 6 5 Tactical Retreats 4 | . 1 . 3 . Traps | -11 -10 -10 -9 -9 ------- Run | Yrd Mat Min Mat Min Traps Triggered 1 | . 1 . . . Indirectly . | . . . . . Trap Hack Attempts . | . . . . . Triggered . | . . . . . Disarmed . | . . . . . Reprogrammed . | . . . . . Reused . | . . . . . Traps Extracted . | . . . . . Installed . | . . . . . Triggered . | . . . . . Machines | -11 -10 -10 -9 -9 ---------- Run | Yrd Mat Min Mat Min Machines Disabled 3 | . . . 2 1 Max in Single Turn 1 | . . . 1 1 Machines Repaired . | . . . . . Machines Dismantled . | . . . . . Machines Sabotaged . | . . . . . Overloaded Fab Kills . | . . . . . Hacking | -11 -10 -10 -9 -9 --------- Run | Yrd Mat Min Mat Min Machines Accessed 22 | . 9 . 13 . Terminals 15 | . 7 . 8 . Fabricators . | . . . . . Repair Stations 1 | . . . 1 . Recycling Units 4 | . 2 . 2 . Scanalyzers 2 | . . . 2 . Garrison Access . | . . . . . Total Hacks 88 | . 29 . 59 . Successful 51 | . 15 . 36 . Failed 36 | . 14 . 22 . Catastrophic 1 | . . . 1 . Database Lockouts 1 | . . . 1 . Manual 35 | . 15 . 20 . Terminals 55 | . 25 . 30 . Fabricators . | . . . . . Repair Stations 8 | . . . 8 . Recycling Units 11 | . 4 . 7 . Scanalyzers 14 | . . . 14 . Garrison Access . | . . . . . Terminal Hacks 11 | . 4 . 7 . Robot Analysis 2 | . . . 2 . Prototype ID Bank 5 | . 3 . 2 . Terminal Index 1 | . . . 1 . Investigation Status 1 | . . . 1 . Hauler Manifests 2 | . 1 . 1 . Fabricator Hacks . | . . . . . Repair Station Hacks 6 | . . . 6 . Scan Component 3 | . . . 3 . Repair 3 | . . . 3 . Recycling Unit Hacks 3 | . 1 . 2 . Report Inventory 3 | . 1 . 2 . Scanalyzer 11 | . . . 11 . Insert Component 4 | . . . 4 . Analyze 4 | . . . 4 . Retrieve Study 3 | . . . 3 . Garrison Access Hacks . | . . . . . Unauthorized Hacks 20 | . 10 . 10 . Terminals 17 | . 8 . 9 . Botnet 3 | . 2 . 1 . Disrupt 2 | . . . 2 . Skim 12 | . 6 . 6 . Fabricators . | . . . . . Repair Stations . | . . . . . Recycling Units 3 | . 2 . 1 . Tunnel 3 | . 2 . 1 . Scanalyzers . | . . . . . Garrison Access . | . . . . . Data Cores Recovered . | . . . . . Used . | . . . . . Hacking Detections 20 | . 8 . 12 . Full Trace Events 2 | . . . 2 . Feedback Events . | . . . . . Feedback Blocked . | . . . . . Robot Schematics Acquired . | . . . . . Robots Built . | . . . . . Authchips . | . . . . . Time . | . . . . . Total Robot Build Rating . | . . . . . Part Schematics Acquired 4 | . . . 4 . Parts Built . | . . . . . Authchips . | . . . . . Time . | . . . . . Total Part Build Rating . | . . . . . Part Studies Acquired 3 | . . . 3 . Parts Repaired 3 | . . . 3 . Time 96 | . . . 96 . Parts Recycled . | . . . . . Recycled Matter . | . . . . . Retrieved Matter . | . . . . . Retrieved Components . | . . . . . Parts Scanalyzed 4 | . . . 4 . Part Schematics Acquired 4 | . . . 4 . Parts Damaged 1 | . . . 1 . Bothacking | -11 -10 -10 -9 -9 ------------ Run | Yrd Mat Min Mat Min Used RIF Installer . | . . . . . Robots Hacked . | . . . . . Non-combat . | . . . . . Combat . | . . . . . Robot Hacks Applied . | . . . . . Relay Couplers Released . | . . . . . Fabnet Peak Effective % . | . . . . . Robots Rewired . | . . . . . Allies Hacked . | . . . . . Hacks Repelled . | . . . . . Allies | -11 -10 -10 -9 -9 -------- Run | Yrd Mat Min Mat Min Total Allies 1 | . . . . 1 Largest Group 1 | . . . . 1 Highest-Rated Group 31 | . . . . 31 Highest-Rated Ally 31 | . . . . 31 Total Orders . | . . . . . Ally Attacks 15 | . . . . 15 Total Damage 167 | . . . . 167 Kills 1 | . . . . 1 Allies Corrupted . | . . . . . Allies Melted . | . . . . . Intel | -11 -10 -10 -9 -9 ------- Run | Yrd Mat Min Mat Min Active Infowar (turns) 2930 | 52 1257 412 1209 . Sensors 1 | . . 1 . . Structural 1209 | . . . 1209 . Seismic 1923 | 52 1257 411 203 . Robot Analysis Total 2 | . . . 2 . Derelict Logs Recovered 2 | . . 2 . . Drone Launches . | . . . . . Drone Recoveries . | . . . . . Exploration | -11 -10 -10 -9 -9 ------------- Run | Yrd Mat Min Mat Min Turns Passed 3871 | 171 1257 668 1639 136 Spaces Moved 2200 | 102 815 455 765 63 Core 20 | 18 2 . . . Treads . | . . . . . Legs 485 | 84 401 . . . Wheels 1695 | . 412 455 765 63 Hover . | . . . . . Flight . | . . . . . Fastest Speed 50 | 50 90 135 125 125 Average Speed 134 | 107 123 135 146 148 Slowest Speed 200 | 120 200 135 200 185 Overloaded Moves . | . . . . . Propulsion Burnouts . | . . . . . Robots Hopped . | . . . . . Potential Cave-ins . | . . . . . Cave-ins Triggered . | . . . . . Exploration Rate (%) 51 | 3 96 62 80 17 Regions Visited 4 Branch Regions 2 Pre-discovered Areas 6 | . 3 2 1 . Known Exits Taken 2 | . . 1 1 . Unknown Exits Taken 2 | 1 1 . . . Scrap Searched 1 | . . 1 . . Spaces Dug 9 | . . . . 9 Terrain Destroyed 44 | . 7 . 5 32 Melee . | . . . . . Projectile . | . . . . . AOE 44 | . 7 . 5 32 Terrain Rammed . | . . . . . Walls Destroyed . | . . . . . Machines Disabled . | . . . . . Actions | -11 -10 -10 -9 -9 --------- Run | Yrd Mat Min Mat Min Total 2718 | 134 956 494 1052 82 Wait 141 | . 24 26 91 . Move 2196 | 101 814 454 764 63 Hop . | . . . . . Pick Up 67 | 10 29 3 24 1 Fast Attach 5 | . 3 . 2 . Attach 18 | 7 . . 11 . Detach . | . . . . . Swap 24 | . 11 3 6 4 Drop 30 | . 15 1 14 . Fire 237 | 16 60 7 140 14 Melee . | . . . . . Ram . | . . . . . Kick . | . . . . . Crush . | . . . . . Escape Stasis . | . . . . . Rewire . | . . . . . Trap . | . . . . . Miscellaneous . | . . . . . Route ------- -11/Scrapyard -10/Materials (discovered 5 exits: *Mat x3 / [*Min] / Sub) -10/Mines (discovered 3 exits: *Mat x2 / Sub) -9/Materials (discovered 6 exits: *Mat x3 / *Min x2 / *Sto) -9/Mines (discovered 1 exit: Exi) History --------- Turn | Location | Event 5 | -11/Scrapyard | Discovered new exit (range 15) 172 | -11/Scrapyard | Entered Materials 173 | -10/Materials | Met a group of wandering Federalists 249 | -10/Materials | Lost 4 allies 306 | -10/Materials | Build established: Mutant 588 | -10/Materials | Discovered new exit (range 14) 799 | -10/Materials | Discovered new exit (range 14) 955 | -10/Materials | Discovered new exit (range 9) 1002 | -10/Materials | Discovered new exit (range 15) 1022 | -10/Materials | Identified exit to Materials 1075 | -10/Materials | Identified exit to Subcaves 1118 | -10/Materials | Learned location of 3 exits from Materials 1149 | -10/Materials | Learned location of 3 exits from Materials 1182 | -10/Materials | Learned location of 2 exits from Materials 1185 | -10/Materials | Learned 4 Subcaves zone layouts 1197 | -10/Materials | Learned 4 Materials zone layouts 1247 | -10/Materials | Learned location of 2 exits from Mines 1285 | -10/Materials | Learned location of Storage (-9) 1429 | -10/Materials | Entered Mines 1466 | -10/Mines | Found a damaged Exp. Sensor Array with a note attached 1469 | -10/Mines | Found Prototype Device 1470 | -10/Mines | Identified Exp. Sensor Array 1796 | -10/Mines | Core integrity fell below 50% 1909 | -10/Mines | Learned location of Zion (-6) 2066 | -10/Mines | Assembled infested the area 2071 | -10/Mines | Assisted by a Guerilla fighting off Assembled 2097 | -10/Mines | Entered Materials 2097 | -9/Materials | Evolved 2 slots: Utility x2 2098 | -9/Materials | Identified exit to Materials 2098 | -9/Materials | Identified exit to Mines 2098 | -9/Materials | Identified exit to Storage 2521 | -9/Materials | Central database locked down 2568 | -9/Materials | Repaired Arm. Wheel+ 2601 | -9/Materials | Repaired Arm. Wheel+? 2666 | -9/Materials | Repaired Arm. Wheel+ 3418 | -9/Materials | Core integrity fell below 50% 3697 | -9/Materials | First assault squad dispatched 3736 | -9/Materials | Entered Mines 3737 | -9/Mines | Identified exit to Exiles 3739 | -9/Mines | Core integrity fell below 20% 3758 | -9/Mines | Met a Derelict testing a Signal Generator 3771 | -9/Mines | Found Signal Generator 3872 | -9/Mines | Destroyed by L-31 Rogue with Katana Last Messages --------------- 03805_ R-06 Scavenger collects Lgt. Ion Engine. 03809_ G-47 Trooper destroyed. 03809_ Pulverizer disabled. 03809_ R-06 Scavenger collects Flight Unit. 03829_ Acquired 5 matter. 03856_ C-45 Heavy ARC suffers critical hit (Burn). 03857_ C-45 Heavy ARC bursts open, deploying its payload. 03857_ G-47 Trooper unfolds itself. 03857_ B-36 Bruiser unfolds itself. 03857_ I-25 Savior unfolds itself. 03858_ G-47 Trooper suffers critical hit (Burn). 03863_ B-36 Bruiser destroyed. 03863_ Power Amplifier melted. 03863_ I-25 Savior destroyed. 03864_ G-47 Trooper destroyed. 03865_ L-31 Rogue destroyed. 03869_ Arm. Wheel+ severed. 03871_ Destroyed Imp. Ion Engine. Map ----- +----------------------------------------------------+ | ???????????????????????????????????????? | | ???????????????????????????????????????? | | ???????????????????????????????????????? | | ???????????????????????????????????????? | | ???????????????????????????????????????? | | ???????????????????????????????????????? | | ???????????????????????????????????????? | | ???????????????????????????????????????? | | ???????????????????????????????????????? | | ???????????????????????????????????????? | | ???????????????????????????????????????? | | ???????????????????????##??????????????? | | ??????????????????????? #?????????????? | | ??????????????????????? ##???????????? | | ??????????????????????? ##??????????? | | ???????????????????????? #??????????? | | ???????????????????????? #??????????? | | ????????????????#######? #??????????? | | ????????????????? # ## ##?????????? | | ?????????????????? * #?????????? | | ??????????????????? % #?????????? | | ???????????????????? % * ?#####????? | | ?????????????????????# %% #?# ? ? | | ?????????????????????# !%! #?# """" #? | | ??????????????????????# =l #?# """" #? | | ???????????????????????# @ #??# """" #? | | ???????????????????????# g#??# #? | | ???????????????########## #### """" #? | | ???????????????# [%*%[= """ #? | | ???????????????# ####="""" #? | | ???????????????# ##########??# #? | | ???????????????# #???????????#########? | | ???????????????# #????????????????????? | | ??????????????## ##???????????????????? | | ?????????????## #???????????????????? | | ????????????## ######??????????????? | | ???????????## #??????????????? | | ???????????##= = = #####??????????? | | ???????????## = #### ## #####??????? | | ???????????# [ #??# ##?????? | | ???????????## #?# #?????? | | ????????????# #?###### #?????? | | ????????????########??????## ##?????? | | ???????????????????????????# #??????? | | ???????????????????????????# #??????? | | ???????????????????????????# #??????? | | ???????????????????????????## ##??????? | | ?????????????????????????????###???????? | | ???????????????????????????????????????? | | ???????????????????????????????????????? | +----------------------------------------------------+ Best States ------------- Heat Dissipation 56 Energy Generation 14 Energy Capacity 280 Matter Stores 300 Matter Capacity 300 Sight Range 16 Terrain Scan Density 10 Armor Coverage 150 Evasion (%) 55 Targeting Accuracy 6 Item Schematics ----------------- Huge Storage Unit | -9/Materials | Scanalyzed Hacking Suite | -9/Materials | Scanalyzed Trap Scanner | -9/Materials | Scanalyzed Arm. Wheel | -9/Materials | Scanalyzed Robot Schematics ------------------ None Fabricated ------------ Nothing Repaired ---------- Arm. Wheel | 8% | -9/Materials Arm. Wheel | 37% | -9/Materials Arm. Wheel | 56% | -9/Materials Studied --------- Autogun | -9/Materials | Hacked Particle Gun | -9/Materials | Hacked Arm. Wheel | -9/Materials | Hacked Alien Tech Used ----------------- None Achievements -------------- None Challenges ------------ None Game ------ Seed PlasmaBlinkCapacitor Manual? 0 Play Time 00:43:20 Cumulative 398.9 hours Start 2026.03.19 @ 23:45:12 End 2026.03.20 @ 00:44:42 Sessions 1 Manual Loads 0 Difficulty Rogue Special Mode None Game No. 289 Rogue 279 Adventurer 0 Explorer 10 Win Type - Total 5 Types 5/0/0/0/0/0/0/0/0/0 Lore% 81 Gallery% 66 Achievement% 43 Wizard Run 0 Options --------- Layout 2 ASCII 0 Keyboard 0 Movement Arrows Keybinds 1 Fullscreen 1 Font 24/Smallcaps Map View 50x44 Zoom Use 0% Tactical HUD 1 Map Filters NONE Filters NONE Steam 1 RUN: a97f6d2c-8ca7-4375-b102-b2c6047c534a